Cogmind - Beta 11.1 *** ADVENTURER MODE // 2022.09.01 @ 23:26:38 Player: Cruxius Result: Self-destructed Performance ------------- Evolutions (4) 2000 Regions Visited (11) 2200 Robots Destroyed (109) 545 Value Destroyed (3938) 3938 Prototype IDs (3) 60 Alien Tech Used (0) 0 Bonus (521) 521 TOTAL SCORE: 9264 Bonus ------- Follower Combat Kills 221 Aligned with FarCom 300 Cogmind --------- Core Integrity 743/850 Matter 179/300 Energy 290/290 System Corruption 3% Temperature Cool (0) Movement Treading (160) Location -6/Cetus Parts ------- > --- POWER (1) -------- Improved Deuterium Engine > --- PROPULSION (4) --- Light Treads Light Treads Light Treads Improved Medium Treads > --- UTILITY (7) ------ Improved Heat Sink Large Storage Unit Advanced Targeting Computer Core Analyzer Improved Light Armor Plating Improved Light Armor Plating > --- WEAPON (3) ------- Gatling Laser Gatling Laser Heavy Rocket Launcher > --- INVENTORY (15) --- Improved Deuterium Engine Light Angular Momentum Engine Light Treads Light Treads Light Treads Armored Wheel Improved Heat Sink Large Matter Pod (150) Experimental Sensor Array Gatling Laser Guided Plasma Cannon Minigun High-powered Shotgun Gauss Rifle Assault Cannon Peak State ------------ > --- POWER ------------ Light Angular Momentum Engine > --- PROPULSION ------- Light Treads Light Treads Light Treads Light Treads > --- UTILITY ---------- Improved Heat Sink Advanced Heat Sink Large Storage Unit Advanced Targeting Computer Core Analyzer Improved Heavy Armor Plating > --- WEAPON ----------- Heavy Laser Heavy Laser Guided Plasma Cannon > --- INVENTORY -------- Improved Deuterium Engine Improved Deuterium Engine Light Angular Momentum Engine Light Treads Light Treads Armored Wheel Improved Heat Sink Large Matter Pod Experimental Sensor Array Minigun High-powered Shotgun Gauss Rifle Assault Cannon Heavy Rocket Launcher [Rating: 55] Favorites ----------- Power Nuclear Core Engine Light Angular Momentum Engine Power Core Nuclear Core Propulsion Light Treads Treads Light Treads Leg Aluminum Leg Wheel Compact Wheel Hover Unit Combat Airjet Utility Large Storage Unit Device Improved Heat Sink Storage Large Storage Unit Processor Advanced Targeting Computer Protection Medium Armor Plating Weapon High-powered Shotgun Energy Gun Heavy Laser Energy Cannon Improved EM Pulse Cannon Ballistic Gun High-powered Shotgun Launcher Heavy Rocket Launcher Build | -11 -10 -10 -9 -9 -9 -8 -8 -7 -6 -6 -6 ------- Run | Scr Mat Min Mat Min Exi Min Mat Fac Fac Ext Cet Slots Evolved 8 | . . . 2 . . . 2 2 2 . . Power . | . . . . . . . . . . . . Propulsion 2 | . . . 1 . . . 1 . . . . Utility 5 | . . . 1 . . . 1 1 2 . . Weapon 1 | . . . . . . . . 1 . . . Parts Attached 105 | 7 12 9 6 4 . 1 12 18 17 18 1 Power 12 | 1 1 1 . . . . 1 5 1 2 . Engine 5 | 1 1 . . . . . . . 1 2 . Core 7 | . . 1 . . . . 1 5 . . . Reactor . | . . . . . . . . . . . . Propulsion 46 | 3 6 5 4 3 . . 8 6 6 5 . Treads 32 | 1 3 3 3 1 . . 6 5 5 5 . Leg 1 | 1 . . . . . . . . . . . Wheel 12 | 1 3 2 1 1 . . 2 1 1 . . Hover 1 | . . . . 1 . . . . . . . Flight . | . . . . . . . . . . . . Utility 26 | 1 4 2 1 1 . 1 3 4 7 2 . Device 8 | . 2 . . 1 . . . 2 3 . . Storage 7 | 1 1 2 . . . . . 1 2 . . Processor 5 | . 1 . 1 . . 1 1 1 . . . Hackware . | . . . . . . . . . . . . Protection 6 | . . . . . . . 2 . 2 2 . Artifact . | . . . . . . . . . . . . Weapon 21 | 2 1 1 1 . . . . 3 3 9 1 Energy Gun 5 | . . . . . . . . . 2 3 . Energy Cannon 4 | . . . . . . . . . 1 3 . Ballistic Gun 10 | 2 1 1 1 . . . . 3 . 2 . Ballistic Cannon . | . . . . . . . . . . . . Launcher 2 | . . . . . . . . . . 1 1 Special Weapon . | . . . . . . . . . . . . Impact Weapon . | . . . . . . . . . . . . Slashing Weapon . | . . . . . . . . . . . . Piercing Weapon . | . . . . . . . . . . . . Special Melee Weapon . | . . . . . . . . . . . . Unidentified Prototypes 3 | . . . . . . . . 1 1 1 . Parts Lost 6 | . . . . 1 . . 1 1 . 2 1 Power . | . . . . . . . . . . . . Propulsion 1 | . . . . . . . 1 . . . . Utility 4 | . . . . 1 . . . 1 . 1 1 Weapon 1 | . . . . . . . . . . 1 . Highest Loss Streak 2 | . . . . 1 . . 1 1 . 2 1 To Critical Strikes . | . . . . . . . . . . . . Average Slot Usage (%) 97 | . 98 100 98 91 100 100 99 99 96 93 97 Engine 3 | . 14 4 . . . . . . 5 5 6 Core 5 | . . 9 11 11 11 11 9 6 . . . Treads 23 | . 20 18 23 24 22 22 27 22 25 26 26 Wheel 6 | . 7 9 9 8 11 11 8 7 . . . Device 7 | . 7 . . 2 11 7 . 5 16 13 10 Storage 9 | . 14 14 11 11 11 11 9 9 9 6 6 Processor 13 | . 4 14 20 11 11 14 19 15 13 13 13 Protection 3 | . . . . . . . 7 5 2 7 13 Energy Gun 3 | . . . . . . . . . 6 14 17 Ballistic Gun 17 | . 28 28 22 22 22 22 18 22 10 1 . Naked Turns . | . . . . . . . . . . . . Heaviest Build 65 | 11 27 32 33 38 38 38 38 48 61 65 50 Greatest Support 90 | 16 40 40 60 60 16 40 80 60 80 90 90 Greatest Overweight (x) 10 | 1 1 1 2 10 2 2 3 4 5 . . Average Overweight (x) 1 | . . . 1 1 2 . 2 2 . . . Largest Inventory Capacity 25 | 8 15 25 15 15 15 15 15 15 15 15 15 Average Capacity 14 | 6 13 15 15 15 15 15 15 15 15 15 15 Most Carried 15 | 7 15 15 15 15 15 15 15 15 15 15 15 Average Carried 14 | 4 12 14 14 14 14 15 14 14 14 14 15 Final Capacity 15 | 8 15 15 15 15 15 15 15 15 15 15 15 Final Carried 15 | 6 15 15 15 15 15 15 15 15 15 15 15 Class Distribution -------------------- 44% | Mutant 30% | Scavenger-Gunner 13% | Gunner 7% | Scavenger-Mutant Dominant Class ---------------- Mutant | -10/Materials Mutant | -10/Mines Mutant | -9/Materials Mutant | -9/Mines Mutant | -9/Exiles Skirmisher | -8/Mines Mutant | -8/Materials Gunner | -7/Factory Scavenger-Gunner | -6/Factory Scavenger-Gunner | -6/Extension Scavenger-Gunner | -6/Cetus Resources | -11 -10 -10 -9 -9 -9 -8 -8 -7 -6 -6 -6 ----------- Run | Scr Mat Min Mat Min Exi Min Mat Fac Fac Ext Cet Matter Collected 2772 | 261 162 152 376 107 . 38 295 639 384 358 . Remotely . | . . . . . . . . . . . . Salvage Created 4430 | . 312 103 391 37 . 30 360 1095 762 1332 8 Parts 211 | . 16 7 16 . . 6 17 64 41 44 . Haulers Intercepted 5 | . 1 . . . . . . 2 1 1 . Recyclers Shooed 5 | . . 1 . . . . . 3 . 1 . Parts Field Recycled . | . . . . . . . . . . . . Retrieved Matter . | . . . . . . . . . . . . Parts Self-Destructed . | . . . . . . . . . . . . Prevented . | . . . . . . . . . . . . Kills | -11 -10 -10 -9 -9 -9 -8 -8 -7 -6 -6 -6 ------- Run | Scr Mat Min Mat Min Exi Min Mat Fac Fac Ext Cet Combat Hostiles Destroyed 96 | . 8 5 12 4 . 3 9 20 14 20 1 Guns 88 | . 8 5 12 4 . 3 9 20 13 14 . Cannons 5 | . . . . . . . . . 1 4 . AOE 2 | . . . . . . . . . . 1 1 Classes Destroyed 14 | . 3 . 3 1 . . 1 4 1 1 . Worker 2 | . . . . . . . 1 1 . . . Builder 4 | . . . 1 . . . . . . 3 . Hauler 5 | . 1 . . . . . . 2 1 1 . Recycler 5 | . . . . . . . . 2 . 3 . Operator 1 | . . . . . . . . 1 . . . Swarmer 26 | . 3 3 4 . . 3 . 3 4 6 . Grunt 31 | . 5 2 3 . . . 6 7 5 3 . Brawler 1 | . . . . . . . . . 1 . . Duelist 2 | . . . 1 . . . . 1 . . . Sentry 21 | . . . 4 . . . 3 3 2 9 . Hunter 2 | . . . . . . . . 2 . . . Programmer 6 | . . . . . . . . 4 2 . . Behemoth 1 | . . . . . . . . . . 1 . Cetus Guard 1 | . . . . . . . . . . . 1 Assembled 4 | . . . . 4 . . . . . . . Butcher 1 | . . . . . . . . . . 1 . Best Kill Streak 6 | . 3 3 5 4 . 3 3 4 5 6 1 Combat Bots Only 5 | . 3 3 5 4 . 3 3 3 5 5 1 Max Kills in Single Turn 2 | . 2 1 2 1 . 1 1 2 1 2 1 Gunslinging 1 | . 1 . 1 . . . . . . 1 . Exploded 1 | . . . . . . . . . . 1 1 Melee . | . . . . . . . . . . . . Uniques/NPCs Destroyed . | . . . . . . . . . . . . Combat | -11 -10 -10 -9 -9 -9 -8 -8 -7 -6 -6 -6 -------- Run | Scr Mat Min Mat Min Exi Min Mat Fac Fac Ext Cet Damage Taken 3812 | . 222 95 221 211 . 21 330 644 441 1381 246 Core 313 | . 49 30 33 14 . . 19 61 44 44 19 Absorbed by Shields 14 | . . . . . . . . 14 . . . Core Remaining (%) 88 | 100 . 68 . . . 88 96 91 . . . Volleys Fired 206 | . 23 8 23 9 . 3 25 36 22 51 6 Largest 3 | . 2 2 2 2 . 2 2 3 3 3 2 Hottest 240 | . 40 45 50 50 . 50 50 78 207 240 119 Shots Fired 482 | . 46 16 46 18 . 6 50 108 66 119 7 Gun 451 | . 46 16 46 18 . 6 50 108 61 99 1 Cannon 18 | . . . . . . . . . 5 13 . Launcher 13 | . . . . . . . . . . 7 6 Special . | . . . . . . . . . . . . Kinetic 357 | . 46 16 46 18 . 6 50 108 53 14 . Thermal 100 | . . . . . . . . . 8 91 1 Explosive 13 | . . . . . . . . . . 7 6 Electromagnetic 12 | . . . . . . . . . 5 7 . Robot Hit Streak 42 | . 11 12 21 5 . 3 30 36 16 42 11 Robot Miss Streak 7 | . 2 1 7 4 . 1 1 4 3 3 . Penetration Max 1 | . . . . . . . . 1 1 1 . Secondary Targets 15 | . 2 2 3 2 . 1 . 1 2 2 . Max Gunslinging Chain 1 | . 1 1 1 1 . 1 . 1 1 1 . Shots Hit Robots 382 | . 40 14 39 12 . 5 39 78 44 106 5 Core Hits 255 | . 16 6 23 8 . 3 26 52 31 70 20 Critical Kills 6 | . . . . . . . . 3 2 1 . Critical Parts Destroyed 2 | . . . 1 . . . . . 1 . . Critical Strikes 10 | . . . 1 . . . . 3 3 3 . Burn 2 | . . . . . . . . . . 2 . Destroy 8 | . . . 1 . . . . 3 3 1 . Melee Attacks . | . . . . . . . . . . . . Impact . | . . . . . . . . . . . . Slashing . | . . . . . . . . . . . . Piercing . | . . . . . . . . . . . . Sneak Attacks . | . . . . . . . . . . . . Combat Hostiles . | . . . . . . . . . . . . Follow-up Attacks . | . . . . . . . . . . . . Damage Inflicted 9392 | . 434 239 896 230 . 97 960 1963 971 3034 568 Guns 7331 | . 425 238 867 229 . 87 957 1792 875 1861 . Cannons 491 | . . . . . . . . . 80 411 . Explosions 1277 | . . . . . . . . . . 709 568 Melee . | . . . . . . . . . . . . Ramming 293 | . 9 1 29 1 . 10 3 171 16 53 . Kinetic 5575 | . 425 238 867 229 . 87 957 1792 724 256 . Thermal 1986 | . . . . . . . . . 151 1835 . Explosive 1277 | . . . . . . . . . . 709 568 Electromagnetic 261 | . . . . . . . . . 80 181 . Impact . | . . . . . . . . . . . . Slashing . | . . . . . . . . . . . . Piercing . | . . . . . . . . . . . . Highest Corruption 4 | . . . . 1 1 1 . 4 3 3 3 Average Corruption 2 | . . . . 1 1 1 . 3 2 3 3 Corruption Purged . | . . . . . . . . . . . . Corruption Blocked . | . . . . . . . . . . . . Effects 87 | . . . . 2 8 5 . 27 9 35 1 Message Errors 20 | . . . . . 1 1 . 4 2 12 . Matter Fused 18 | . . . . . . 1 . 7 1 9 . Heat Flow Errors 10 | . . . . . . . . 4 3 3 . Energy Discharges 13 | . . . . 1 2 1 . 4 2 3 . Parts Rejected 2 | . . . . . . . . 1 . 1 . Data Loss (minor) 14 | . . . . . 4 1 . 5 . 3 1 Data Loss (major) 4 | . . . . 1 1 . . 2 . . . Misfires 4 | . . . . . . . . . 1 3 . Alerts 2 | . . . . . . 1 . . . 1 . Overload Shots . | . . . . . . . . . . . . Overflow Damage 59 | . . . . . . . . . . 59 . Projectiles . | . . . . . . . . . . . . Explosions 59 | . . . . . . . . . . 59 . Melee . | . . . . . . . . . . . . Knockbacks 6 | . . . . . . . . 4 1 1 . Impact 6 | . . . . . . . . 4 1 1 . Kinetic . | . . . . . . . . . . . . Secondary . | . . . . . . . . . . . . Self-Inflicted Damage 102 | . 4 . 1 . . . 1 44 . 52 . Shots 3 | . . . . . . . . . . 3 . Rammed 38 | . 2 1 5 1 . 1 1 20 2 5 . Targets Rammed 42 | . 2 1 5 1 . 1 1 23 2 6 . Kicked . | . . . . . . . . . . . . Crushed 4 | . . . . . . . . 3 . 1 . Highest Temperature 261 | . 9 1 4 30 . . 22 261 222 187 . Average Temperature 38 | . 6 1 2 17 . . 9 44 77 40 . Received Heat Transfer 1292 | . 126 42 84 146 . . 225 117 156 396 . Siege Activations . | . . . . . . . . . . . . Robots Corrupted . | . . . . . . . . . . . . Combat Hostiles . | . . . . . . . . . . . . Parts Fried . | . . . . . . . . . . . . Impact Corruptions . | . . . . . . . . . . . . Robots Melted 1 | . . . . . . . . . . 1 . Combat Hostiles 1 | . . . . . . . . . . 1 . Parts Melted 16 | . . . . . . . . . . 16 . Heat Transferred 4290 | . . . . . . . . . 296 3994 . Parts Sabotaged . | . . . . . . . . . . . . Parts Stolen . | . . . . . . . . . . . . Parts Stripped . | . . . . . . . . . . . . Power Chain Reactions . | . . . . . . . . . . . . Missiles Intercepted . | . . . . . . . . . . . . Alert | -11 -10 -10 -9 -9 -9 -8 -8 -7 -6 -6 -6 ------- Run | Scr Mat Min Mat Min Exi Min Mat Fac Fac Ext Cet Peak Influence 389 | . 177 126 389 108 . 85 198 230 188 192 43 Initial 67 | . . 16 . 67 . . 27 17 12 22 . Average 74 | . 62 49 117 70 . 67 83 73 72 80 6 Maximum Alert Level 1 | . . . 1 . . . . 1 . . . Low Security (%) 98 | 100 100 100 85 100 . 100 100 96 100 100 100 Level 1 1 | . . . 15 . . . . 3 . . . Level 2 . | . . . . . . . . . . . . Level 3 . | . . . . . . . . . . . . Level 4 . | . . . . . . . . . . . . Level 5 . | . . . . . . . . . . . . High Security . | . . . . . . . . . . . . Max Security . | . . . . . . . . . . . . Squads Dispatched 16 | . 2 1 . . . . 2 7 3 1 . Investigation 4 | . 2 1 . . . . 1 . . . . Extermination 5 | . . . . . . . . 3 2 . . Reinforcement 7 | . . . . . . . 1 4 1 1 . Assault . | . . . . . . . . . . . . Garrison . | . . . . . . . . . . . . Intercept . | . . . . . . . . . . . . Searches Triggered . | . . . . . . . . . . . . Construction Impeded 1 | . . . . . . . . . . 1 . Haulers Reinforced 1 | . . . . . . . . 1 . . . Active Scanning Responses . | . . . . . . . . . . . . Cargo Convoy Interrupts . | . . . . . . . . . . . . Stealth | -11 -10 -10 -9 -9 -9 -8 -8 -7 -6 -6 -6 --------- Run | Scr Mat Min Mat Min Exi Min Mat Fac Fac Ext Cet Distress Signals 12 | . 1 . 1 . . . . 3 1 5 1 Communications Jammed . | . . . . . . . . . . . . Distress Signals . | . . . . . . . . . . . . Times Spotted 141 | . 16 6 15 15 . 4 12 29 16 26 2 Peak Tracking Total 12 | . 5 3 5 12 . 4 3 4 5 4 5 Tactical Retreats 11 | . . . 1 1 . 1 1 2 1 4 . Traps | -11 -10 -10 -9 -9 -9 -8 -8 -7 -6 -6 -6 ------- Run | Scr Mat Min Mat Min Exi Min Mat Fac Fac Ext Cet Traps Triggered 5 | . 2 . . . . . . 1 2 . . Indirectly . | . . . . . . . . . . . . Trap Hack Attempts . | . . . . . . . . . . . . Triggered . | . . . . . . . . . . . . Disarmed . | . . . . . . . . . . . . Reprogrammed . | . . . . . . . . . . . . Reused . | . . . . . . . . . . . . Traps Extracted . | . . . . . . . . . . . . Installed . | . . . . . . . . . . . . Triggered . | . . . . . . . . . . . . Machines | -11 -10 -10 -9 -9 -9 -8 -8 -7 -6 -6 -6 ---------- Run | Scr Mat Min Mat Min Exi Min Mat Fac Fac Ext Cet Machines Disabled 2 | . . . . . . . 1 . 1 . . Max in Single Turn 1 | . . . . . . . 1 . 1 . . Machines Sabotaged . | . . . . . . . . . . . . Garrisons Compromised . | . . . . . . . . . . . . Overloaded Fab Kills . | . . . . . . . . . . . . Hacking | -11 -10 -10 -9 -9 -9 -8 -8 -7 -6 -6 -6 --------- Run | Scr Mat Min Mat Min Exi Min Mat Fac Fac Ext Cet Machines Accessed 5 | . . 2 . . 1 . 1 . 1 . . Terminals 2 | . . . . . . . 1 . 1 . . Fabricators . | . . . . . . . . . . . . Repair Stations . | . . . . . . . . . . . . Recycling Units . | . . . . . . . . . . . . Scanalyzers . | . . . . . . . . . . . . Garrison Access . | . . . . . . . . . . . . Total Hacks 17 | . . 2 . . 9 . 4 . 2 . . Successful 13 | . . 2 . . 9 . . . 2 . . Failed 4 | . . . . . . . 4 . . . . Catastrophic . | . . . . . . . . . . . . Database Lockouts . | . . . . . . . . . . . . Manual 2 | . . . . . 1 . . . 1 . . Terminals 6 | . . . . . . . 4 . 2 . . Fabricators . | . . . . . . . . . . . . Repair Stations . | . . . . . . . . . . . . Recycling Units . | . . . . . . . . . . . . Scanalyzers . | . . . . . . . . . . . . Garrison Access . | . . . . . . . . . . . . Terminal Hacks 13 | . . 2 . . 9 . . . 2 . . Record 9 | . . . . . 9 . . . . . . Open Door 2 | . . 2 . . . . . . . . . Emergency Access Points 1 | . . . . . . . . . 1 . . Recall Reinforcements 1 | . . . . . . . . . 1 . . Fabricator Hacks . | . . . . . . . . . . . . Repair Station Hacks . | . . . . . . . . . . . . Recycling Unit Hacks . | . . . . . . . . . . . . Scanalyzer . | . . . . . . . . . . . . Garrison Access Hacks . | . . . . . . . . . . . . Unauthorized Hacks . | . . . . . . . . . . . . Terminals . | . . . . . . . . . . . . Fabricators . | . . . . . . . . . . . . Repair Stations . | . . . . . . . . . . . . Recycling Units . | . . . . . . . . . . . . Scanalyzers . | . . . . . . . . . . . . Garrison Access . | . . . . . . . . . . . . Data Cores Recovered . | . . . . . . . . . . . . Used . | . . . . . . . . . . . . Hacking Detections 2 | . . . . . . . 1 . 1 . . Full Trace Events 1 | . . . . . . . 1 . . . . Feedback Events . | . . . . . . . . . . . . Feedback Blocked . | . . . . . . . . . . . . Robot Schematics Acquired . | . . . . . . . . . . . . Robots Built . | . . . . . . . . . . . . Authchips . | . . . . . . . . . . . . Time . | . . . . . . . . . . . . Total Robot Build Rating . | . . . . . . . . . . . . Part Schematics Acquired . | . . . . . . . . . . . . Parts Built . | . . . . . . . . . . . . Authchips . | . . . . . . . . . . . . Time . | . . . . . . . . . . . . Total Part Build Rating . | . . . . . . . . . . . . Parts Repaired . | . . . . . . . . . . . . Time . | . . . . . . . . . . . . Parts Recycled . | . . . . . . . . . . . . Recycled Matter . | . . . . . . . . . . . . Retrieved Matter . | . . . . . . . . . . . . Retrieved Components . | . . . . . . . . . . . . Parts Scanalyzed . | . . . . . . . . . . . . Part Schematics Acquired . | . . . . . . . . . . . . Parts Damaged . | . . . . . . . . . . . . Bothacking | -11 -10 -10 -9 -9 -9 -8 -8 -7 -6 -6 -6 ------------ Run | Scr Mat Min Mat Min Exi Min Mat Fac Fac Ext Cet Used RIF Installer . | . . . . . . . . . . . . Robots Hacked . | . . . . . . . . . . . . Non-combat . | . . . . . . . . . . . . Combat . | . . . . . . . . . . . . Robot Hacks Applied . | . . . . . . . . . . . . Relay Couplers Released 4 | . . . . . . . . 4 . . . Programmers 4 | . . . . . . . . 4 . . . Fabnet Peak Effective % . | . . . . . . . . . . . . Robots Rewired 11 | . . . . . . . . . . 11 . Allies Hacked . | . . . . . . . . . . . . Hacks Repelled . | . . . . . . . . . . . . Allies | -11 -10 -10 -9 -9 -9 -8 -8 -7 -6 -6 -6 -------- Run | Scr Mat Min Mat Min Exi Min Mat Fac Fac Ext Cet Total Allies 13 | . . . . 2 . . . . . 11 . Largest Group 7 | . . . . 2 1 . . . . 7 . Highest-Rated Group 241 | . . . . 52 31 . . . . 241 . Highest-Rated Ally 39 | . . . . 31 31 . . . . 39 . Total Orders . | . . . . . . . . . . . . Ally Attacks 56 | . . . . 11 . . . . . 45 . Total Damage 1094 | . . . . 229 . . . . . 865 . Kills 7 | . . . . 3 . . . . . 4 . Allies Corrupted . | . . . . . . . . . . . . Allies Melted . | . . . . . . . . . . . . Intel | -11 -10 -10 -9 -9 -9 -8 -8 -7 -6 -6 -6 ------- Run | Scr Mat Min Mat Min Exi Min Mat Fac Fac Ext Cet Robot Analysis Total . | . . . . . . . . . . . . Derelict Logs Recovered 2 | . . 1 . 1 . . . . . . . Drone Launches 26 | . . . . . . . . . 26 . . Drone Recoveries 20 | . . . . . . . . . 20 . . Exploration | -11 -10 -10 -9 -9 -9 -8 -8 -7 -6 -6 -6 ------------- Run | Scr Mat Min Mat Min Exi Min Mat Fac Fac Ext Cet Turns Passed 9711 | 63 633 823 500 385 831 381 1086 2199 1153 1610 47 Spaces Moved 5575 | 49 416 616 291 249 634 236 560 1066 607 831 20 Core 16 | 15 . . . 1 . . . . . . . Treads 2366 | . 144 148 28 43 . 179 146 293 534 831 20 Legs 13 | 13 . . . . . . . . . . . Wheels 3180 | 21 272 468 263 205 634 57 414 773 73 . . Hover . | . . . . . . . . . . . . Flight . | . . . . . . . . . . . . Fastest Speed 50 | 50 100 115 115 130 130 130 125 135 150 160 160 Average Speed 141 | 95 126 125 131 137 130 156 135 144 160 160 160 Slowest Speed 550 | 190 160 165 165 550 130 165 166 320 165 160 160 Overloaded Moves . | . . . . . . . . . . . . Propulsion Burnouts . | . . . . . . . . . . . . Robots Hopped . | . . . . . . . . . . . . Cave-ins Triggered . | . . . . . . . . . . . . Exploration Rate (%) 44 | 3 48 99 29 53 92 61 33 24 19 62 9 Regions Visited 11 Branch Regions 6 Pre-discovered Areas . | . . . . . . . . . . . . Known Exits Taken 6 | . 1 1 1 1 1 1 . . . . . Unknown Exits Taken 5 | 1 . . . . . . 1 1 1 1 . Scrap Searched 3 | . . 1 . 1 . 1 . . . . . Spaces Dug . | . . . . . . . . . . . . Terrain Destroyed 57 | . . . . . . . . 1 1 1 54 Melee . | . . . . . . . . . . . . Projectile 2 | . . . . . . . . 1 1 . . AOE 55 | . . . . . . . . . . 1 54 Terrain Rammed . | . . . . . . . . . . . . Walls Destroyed . | . . . . . . . . . . . . Machines Disabled . | . . . . . . . . . . . . Actions | -11 -10 -10 -9 -9 -9 -8 -8 -7 -6 -6 -6 --------- Run | Scr Mat Min Mat Min Exi Min Mat Fac Fac Ext Cet Total 6964 | 62 480 649 359 272 643 241 838 1644 744 1005 27 Wait 822 | . 6 . 24 . . . 234 475 73 10 . Move 5564 | 48 415 615 290 248 633 235 559 1065 606 830 20 Hop . | . . . . . . . . . . . . Pick Up 55 | 7 13 6 5 1 5 . 2 6 8 2 . Fast Attach 28 | 5 3 1 1 2 . 1 1 7 3 4 . Attach 18 | 1 . . 1 . . . 3 6 5 2 . Detach 4 | . . . . . . . . 1 2 1 . Swap 59 | 1 9 8 4 2 . . 8 5 9 12 1 Drop 74 | . 9 10 6 2 5 1 5 13 14 9 . Fire 206 | . 23 8 23 9 . 3 25 36 22 51 6 Melee . | . . . . . . . . . . . . Ram 17 | . 2 . 1 . . . 1 13 . . . Kick . | . . . . . . . . . . . . Crush 25 | . . 1 4 1 . 1 . 10 2 6 . Escape Stasis 7 | . . . . . . . . 7 . . . Rewire 85 | . . . . 7 . . . . . 78 . Trap . | . . . . . . . . . . . . Miscellaneous . | . . . . . . . . . . . . Route ------- -11/Scrapyard -10/Materials (discovered 2 exits: *Mat / *Min) -10/Mines (discovered 2 exits: *Mat x2) -9/Materials (discovered 2 exits: *Min / *Sto) -9/Mines (discovered 2 exits: *Mat / *Exi) -9/Exiles (discovered 2 exits: *Min x2) -8/Mines -8/Materials -7/Factory -6/Factory -6/Extension (discovered 2 exits: [*Fac] / [*Cet]) -6/Cetus History --------- Turn | Location | Event 7 | -11/Scrapyard | Discovered new exit (range 15) 64 | -11/Scrapyard | Entered Materials 302 | -10/Materials | Build established: Mutant 418 | -10/Materials | Discovered new exit (range 8) 516 | -10/Materials | Identified exit to Materials 589 | -10/Materials | Discovered new exit (range 11) 603 | -10/Materials | Identified exit to Mines 697 | -10/Materials | Entered Mines 887 | -10/Mines | Discovered exit to Materials (range 5) 905 | -10/Mines | Met a Derelict shopkeep closing up shop 1199 | -10/Mines | Discovered exit to Materials (range 6) 1242 | -10/Mines | Found a damaged Exp. Sensor Array with a note attached 1246 | -10/Mines | Found Prototype Device 1294 | -10/Mines | Received a Rocket Launcher from a helpful Derelict 1345 | -10/Mines | Learned Materials emergency access door positions 1347 | -10/Mines | Found the Drone Emporium 1359 | -10/Mines | Found Prototype Device 1520 | -10/Mines | Entered Materials 1520 | -9/Materials | Evolved 2 slots: Propulsion x1, Utility x1 1523 | -9/Materials | Discovered new exit (range 10) 1532 | -9/Materials | Identified exit to Storage 1987 | -9/Materials | Discovered new exit (range 16) 2005 | -9/Materials | Identified exit to Mines 2020 | -9/Materials | Entered Mines 2021 | -9/Mines | Assembled infested the area 2026 | -9/Mines | Assisted by a Guerilla fighting off Assembled 2121 | -9/Mines | Discovered new exit (range 13) 2137 | -9/Mines | Identified exit to Materials 2356 | -9/Mines | Deemed a non-threat by the Exiles lab entrance 2357 | -9/Mines | Discovered new exit (range 5) 2361 | -9/Mines | Identified exit to Exiles 2382 | -9/Mines | Learned Materials garrison access intel 2405 | -9/Mines | Entered Exiles 2405 | -9/Exiles | Accompanied by 1 ally 2429 | -9/Exiles | Discovered new exit (range 14) 2435 | -9/Exiles | Led the pair of lost Derelicts to a safe place 2444 | -9/Exiles | Identified exit to Mines 2470 | -9/Exiles | Met 8R-AWN 2490 | -9/Exiles | Met EX-HEX 2593 | -9/Exiles | Met EX-DEC 2619 | -9/Exiles | Visited The Gauntlet 2798 | -9/Exiles | Met EX-BIN 2816 | -9/Exiles | Aligned with FarCom system 2818 | -9/Exiles | Given EX-Vault access code 2933 | -9/Exiles | Discovered exit to Mines (range 10) 3065 | -9/Exiles | Opened EX-Vault 3071 | -9/Exiles | Found Prototype Energy Cannon 3133 | -9/Exiles | Warned to stay clear of 0b10 Research branches 3236 | -9/Exiles | Left Exiles lab with Gui. Plasma Cannon 3236 | -9/Exiles | Entered Mines 3526 | -8/Mines | Discovered exit to Materials (range 15) 3617 | -8/Mines | Entered Materials 3617 | -8/Materials | Evolved 2 slots: Propulsion x1, Utility x1 3618 | -8/Materials | Loaded intel: 1 garrison access location 4685 | -8/Materials | Discovered new exit (range 15) 4703 | -8/Materials | Entered Factory 4703 | -7/Factory | Evolved 2 slots: Utility x1, Weapon x1 5520 | -7/Factory | Build established: Gunner 6782 | -7/Factory | Discovered new exit (range 9) 6902 | -7/Factory | Entered another Factory area 6902 | -6/Factory | Evolved 2 slots: Utility x2 6903 | -6/Factory | Identified Sensor Drone Bay 7284 | -6/Factory | Build established: Scavenger-Gunner 8031 | -6/Factory | Discovered new exit (range 15) 8055 | -6/Factory | Entered Extension 8663 | -6/Extension | Identified Gui. Plasma Cannon 9147 | -6/Extension | Spotted B-75 Beast 9180 | -6/Extension | Disrupted transfer network 9180 | -6/Extension | Destroyed B-75 Beast 9639 | -6/Extension | Discovered new exit (range 16) 9641 | -6/Extension | Discovered new exit (range 15) 9665 | -6/Extension | Entered Cetus 9686 | -6/Cetus | Spotted Cetus Guard 9696 | -6/Cetus | Spotted Cetus Guard 9710 | -6/Cetus | Destroyed Cetus Guard 9712 | -6/Cetus | Self-destructed Last Messages --------------- Slug penetrates Wall. Penetrated by Slug. Critical hit (Destroy). Penetrated by Slug. Adv. Heat Sink destroyed. System corrupted: Component data lost. Slug penetrates Wall. Penetrated by Slug. The unstable cave ceiling collapses. Penetrated by Slug. Slug penetrates Wall. Penetrated by Slug. Critical hit (Destroy). Penetrated by Slug. Slug penetrates Wall. Penetrated by Slug. The unstable cave ceiling collapses. Penetrated by Slug. Cetus Guard destroyed. Slug penetrates Cetus Guard. Map ----- +----------------------------------------------------+ | ???????????????????????????????????? | | ???????????????????????????????????? | | ???????????????????????????????????? | | ???????????????????????????????????? | | ???????????????????????????????????? | | ???????????????????????????????????? | | ???????????????????????????????????? | | ???????????????????????????????????? | | ???????????????????????????????????? | | ???????????????????????????????????? | | ???????????????????????????????????? | | ???????????????????????????????????? | | ???????????????????????????????????? | | ???????????????????????????????????? | | ???????????????????????????????????? | | ???????????????????????????????????? | | ???????????????????????????????????? | | ???????????????????????????????????? | | ???????????????????????????????????? | | ???????????????????????????????????? | | ???????????????????????????????????? | | ???????????????????????????????????? | | ???????????????????????????????????? | | ???????????????????????????????????? | | ?##############;###; ##??????? | | ?# @ % ???? | | ?# Y ???? | | ?# YY ???? | | ?#########;######### ###??????? | | ?????????##???????????? ?????????? | | ???????????????????????????????????? | | ???????????????????????????????????? | | ???????????????????????????????????? | | ???????????????????????????????????? | | ???????????????????????????????????? | | ???????????????????????????????????? | | ???????????????????????????????????? | | ???????????????????????????????????? | | ???????????????????????????????????? | | ???????????????????????????????????? | | ???????????????????????????????????? | | ???????????????????????????????????? | | ???????????????????????????????????? | | ???????????????????????????????????? | | ???????????????????????????????????? | | ???????????????????????????????????? | | ???????????????????????????????????? | | ???????????????????????????????????? | | ???????????????????????????????????? | | ???????????????????????????????????? | +----------------------------------------------------+ Best States ------------- Heat Dissipation 70 Energy Generation 18 Energy Capacity 290 Matter Stores 450 Matter Capacity 450 Sight Range 16 Robot Scan Range 19 Terrain Scan Density 85 Armor Coverage 600 Resistance: KI 20 Resistance: TH 20 Resistance: EX 20 Resistance: EM 20 Resistance: I 20 Resistance: S 20 Resistance: P 20 Evasion (%) 45 Targeting Accuracy 8 Core Analysis 6 Recoil Reduction 4 Kinecelleration 30 Offensive Hacking 10 Item Schematics ----------------- None Robot Schematics ------------------ None Fabricated ------------ Nothing Alien Tech Used ----------------- None Achievements -------------- GoHome() Release The Drones! Challenges ------------ None Game ------ Seed BurstPrecisionDesublimator Manual? 0 Play Time 01:21:45 Cumulative 16.9 hours Start 2022.09.01 @ 21:49:58 End 2022.09.01 @ 23:26:38 Sessions 1 Manual Loads 0 Difficulty Adventurer Special Mode None Game No. 9 Rogue 0 Adventurer 9 Explorer 0 Win Type - Total 0 Types 0/0/0/0/0/0/0/0/0 Lore% 13 Gallery% 21 Achievement% 16 Wizard Run 0 Options --------- ASCII 0 Keyboard 0 Movement Numpad Keybinds 0 Fullscreen 2 Font 18/SmallcapsGlow Map View 76x50 Tactical HUD 0 Map Filters NONE Filters NONE Steam 1 RUN: 1d2e2ad2-bc51-49d0-9f19-fe3234c903e8